bitfinex-derivatives/quotes_BTCF0:USTF0_20250929
["timestamp","ask_amount","ask_price","bid_price","bid_amount"]
[1759124552951,0.8384233,111770.0,111760.0,0.1240827]
[1759124553345,1.6523433,111770.0,111760.0,0.1240827]
[1759124555552,1.652355,111770.0,111760.0,0.1240827]
[1759124556150,0.838435,111770.0,111760.0,0.1240827]
[1759124556352,1.652155,111770.0,111760.0,0.1240827]
[1759124557248,0.838435,111770.0,111760.0,0.1240827]
[1759124557451,1.652155,111770.0,111760.0,0.1240827]
[1759124558954,1.291355,111770.0,111760.0,0.1240827]
[1759124559146,1.652155,111770.0,111760.0,0.1240827]
[1759124560051,0.838435,111770.0,111760.0,0.1240827]
[1759124560254,1.291115,111770.0,111760.0,0.1240827]
[1759124562451,0.477635,111770.0,111760.0,0.1240827]
[1759124562653,1.290955,111770.0,111760.0,0.1240827]
[1759124562952,1.290955,111770.0,111760.0,0.3836558]
[1759124563153,1.2015203,111770.0,111760.0,0.3836558]
[1759124563555,1.290955,111770.0,111760.0,0.3836558]
[1759124565451,0.477635,111770.0,111760.0,0.3836558]
[1759124565650,1.290955,111770.0,111760.0,0.3836558]
[1759124566358,1.290955,111770.0,111760.0,0.1240827]
[1759124567053,0.477635,111770.0,111760.0,0.1240827]
[1759124567249,0.477635,111770.0,111760.0,0.4848827]
[1759124567455,1.290835,111770.0,111760.0,0.4848827]
[1759124567856,0.477635,111770.0,111760.0,0.4848827]
[1759124568055,1.290835,111770.0,111760.0,0.1240827]
[1759124569060,1.290835,111770.0,111760.0,0.3836558]
[1759124569955,0.477635,111770.0,111760.0,0.7444558]
[1759124570151,1.290675,111770.0,111760.0,0.7444558]
[1759124571052,1.26954547,111770.0,111760.0,0.7444558]
[1759124571262,1.29065868,111770.0,111760.0,0.7444558]
[1759124573259,1.29065868,111770.0,111760.0,0.3836558]
[1759124573755,1.29065868,111770.0,111760.0,0.1240827]
[1759124581967,0.47761868,111770.0,111760.0,0.1240827]
[1759124582171,1.29041868,111770.0,111760.0,0.3836558]
[1759124582767,0.47761868,111770.0,111760.0,0.3836558]
[1759124582970,1.29041868,111770.0,111760.0,0.3836558]
[1759124586279,0.12861088,111770.0,111760.0,0.7836558]
[1759124586574,0.38818398,111770.0,111760.0,0.7836558]
[1759124588577,0.38818398,111770.0,111760.0,1.1444558]
[1759124590278,0.12861088,111770.0,111760.0,1.14433752]
[1759124590479,0.12861088,111770.0,111760.0,0.8848827]
[1759124590778,0.12861088,111770.0,111760.0,1.14433752]
[1759124599677,0.12861088,111770.0,111760.0,1.95705752]
[1759124600187,0.21804558,111770.0,111760.0,1.6976027]
[1759124600384,0.4775004,111770.0,111760.0,1.6976027]
[1759124603088,0.3880657,111770.0,111760.0,1.6976027]
[1759124605291,0.3880657,111770.0,111760.0,0.8848827]
[1759124605483,0.3880657,111770.0,111760.0,1.6976027]
[1759124607189,0.12861088,111770.0,111760.0,1.6976027]
[1759124608991,0.12861088,111770.0,111760.0,1.95705752]
[1759124614491,0.11968254,111770.0,111760.0,1.55705752]
[1759124614696,0.11968254,111770.0,111760.0,1.95705752]
[1759124616197,0.12884412,111770.0,111760.0,1.95705752]
[1759124617296,0.12884412,111770.0,111760.0,1.14433752]
[1759124617498,0.12884412,111770.0,111760.0,1.95697752]
[1759124619601,0.12884412,111770.0,111760.0,1.55697752]
[1759124619893,0.12884412,111770.0,111760.0,1.91777752]
[1759124620199,0.12884412,111770.0,111760.0,1.10513752]
[1759124620397,0.12884412,111770.0,111760.0,1.91773752]
[1759124621806,0.12884412,111770.0,111760.0,1.10513752]
[1759124622005,0.12884412,111770.0,111760.0,1.91773752]
[1759124625610,0.12884412,111770.0,111760.0,1.10513752]
[1759124625901,0.12884412,111770.0,111760.0,1.91773752]
[1759124626304,0.10773091,111770.0,111760.0,1.10513752]
[1759124626611,0.12884531,111770.0,111760.0,1.91769752]
[1759124627201,0.11968373,111770.0,111760.0,1.91769752]
[1759124627809,0.11168373,111770.0,111760.0,1.91769752]
[1759124628711,0.12052031,111770.0,111760.0,1.91769752]
[1759124630315,0.11168373,111770.0,111760.0,1.91769752]
[1759124631110,0.12069336,111770.0,111760.0,1.91769752]
[1759124631408,0.11168373,111770.0,111760.0,1.91769752]
[1759124632506,0.0211144,111770.0,111760.0,1.91769752]
[1759124632713,0.70967682,111790.0,111780.0,0.125146]
[1759124632899,0.73079406,111790.0,111780.0,0.125146]
[1759124634007,0.74179406,111790.0,111780.0,0.125146]
[1759124634204,0.74779406,111790.0,111780.0,0.125146]
[1759124634409,0.75679293,111790.0,111780.0,0.125146]
[1759124635405,0.39599293,111790.0,111780.0,0.125146]
[1759124636311,0.39599293,111790.0,111780.0,0.485946]
[1759124637012,0.46892182,111790.0,111780.0,0.125146]
[1759124646614,0.209467,111790.0,111780.0,0.485946]
[1759124646816,1.28131892,111790.0,111780.0,0.485946]
[1759124647013,1.28131892,111790.0,111780.0,0.125146]
[1759124652225,1.28127524,111790.0,111780.0,0.125146]
[1759124653418,1.28127524,111790.0,111780.0,0.102386]
[1759124653722,1.28127524,111790.0,111780.0,0.125076]
[1759124657324,0.2094641,111790.0,111780.0,0.125076]
[1759124657520,1.28119524,111790.0,111780.0,0.125076]
[1759124657927,0.46887524,111790.0,111780.0,0.125076]
[1759124658127,1.28119524,111790.0,111780.0,0.125076]
[1759124660728,1.54060638,111790.0,111780.0,0.1250771]
[1759124660925,1.28119524,111790.0,111780.0,0.1250771]
[1759124666929,1.54060638,111790.0,111780.0,0.01296]
[1759124667233,0.0894271,111780.0,111770.0,0.1248892]
[1759124667433,0.62936662,111780.0,111770.0,0.1248892]
[1759124668231,1.44160662,111780.0,111770.0,0.38430034]
[1759124668434,1.44660662,111780.0,111770.0,0.38430034]
[1759124668631,1.18719548,111780.0,111770.0,0.38430034]
[1759124668834,1.18519548,111780.0,111770.0,0.38430034]
[1759124669234,1.44460662,111780.0,111770.0,0.38430034]
[1759124669431,0.63236662,111780.0,111770.0,0.38430034]
[1759124669733,1.44456662,111780.0,111770.0,0.38430034]
[1759124669934,0.63236662,111780.0,111770.0,0.38430034]
[1759124670136,1.44456662,111780.0,111770.0,0.38430034]
[1759124672238,0.63236662,111780.0,111770.0,0.38430034]
[1759124672433,1.44456662,111780.0,111770.0,0.38430034]
[1759124672735,0.63236662,111780.0,111770.0,0.38430034]
[1759124672936,1.44456662,111780.0,111770.0,0.1248892]
[1759124675044,0.54293952,111780.0,111770.0,0.1248892]
[1759124675231,1.35513952,111780.0,111770.0,0.1248892]
[1759124680843,0.54293952,111780.0,111770.0,0.1248892]
[1759124681042,1.35505952,111780.0,111770.0,0.1248892]
[1759124681437,0.54293952,111780.0,111770.0,0.1248892]
[1759124681739,1.35505952,111780.0,111770.0,0.1248892]
[1759124682140,0.83623724,111780.0,111770.0,0.1248892]
[1759124682436,0.54293952,111780.0,111770.0,0.1248892]
[1759124682641,1.35501952,111780.0,111770.0,0.1248892]
[1759124682940,1.09560838,111780.0,111770.0,0.1248892]
[1759124685142,0.28352838,111780.0,111770.0,0.1248892]
[1759124685346,1.09560838,111780.0,111770.0,0.38430034]
[1759124687147,1.35501952,111780.0,111770.0,0.1248892]
[1759124688349,1.35497952,111780.0,111770.0,0.1248892]
[1759124689051,0.02411724,111780.0,111770.0,0.1248892]
[1759124689347,1.14269952,111780.0,111770.0,0.1248892]
[1759124692249,0.62387724,111780.0,111770.0,0.1248892]
[1759124692448,1.14269952,111780.0,111770.0,0.1248892]
[1759124693150,0.54293952,111780.0,111770.0,0.1248892]
[1759124693353,1.09556838,111780.0,111770.0,0.1248892]
[1759124693547,1.09556838,111780.0,111770.0,0.38430034]
[1759124694656,1.09556838,111780.0,111770.0,0.1248892]
[1759124694952,1.09556838,111780.0,111770.0,0.38430034]
[1759124696454,0.28352838,111780.0,111770.0,0.38430034]
[1759124697053,1.09548838,111780.0,111770.0,0.38430034]
[1759124697553,1.09548838,111780.0,111770.0,0.74510034]
[1759124699056,0.28352838,111780.0,111770.0,0.74510034]
[1759124699259,1.09548838,111780.0,111770.0,0.74510034]
[1759124700156,1.09548838,111780.0,111770.0,0.4856892]
[1759124700456,1.09548838,111780.0,111770.0,0.74510034]
[1759124701553,0.28352838,111780.0,111770.0,0.74510034]
[1759124701760,1.09548838,111780.0,111770.0,0.74510034]
[1759124703458,0.28352838,111780.0,111770.0,0.74510034]
[1759124703855,1.09544838,111780.0,111770.0,0.74510034]
[1759124704656,0.28352838,111780.0,111770.0,0.74510034]
[1759124705362,0.02411724,111780.0,111770.0,0.74510034]
[1759124705564,0.28352838,111780.0,111770.0,0.74510034]
[1759124705763,0.28352838,111780.0,111770.0,0.4856892]
[1759124705965,0.28352838,111780.0,111770.0,0.74510034]
[1759124707768,0.02411724,111780.0,111770.0,0.74510034]
[1759124707961,0.02411724,111780.0,111770.0,1.14510034]
[1759124708161,0.28352838,111780.0,111770.0,1.95698034]
[1759124708666,0.02411724,111780.0,111770.0,1.95698034]
[1759124710668,0.02411724,111780.0,111770.0,1.95694034]
[1759124714273,0.02411724,111780.0,111770.0,1.14508416]
[1759124714567,0.02411724,111780.0,111770.0,1.95688416]
[1759124718780,0.02411479,111780.0,111770.0,1.95688416]
[1759124720273,0.02411479,111780.0,111770.0,1.14508416]
[1759124720480,0.02411479,111780.0,111770.0,1.95684416]
[1759124720776,0.003,111780.0,111770.0,1.95684416]
[1759124721173,0.003,111780.0,111770.0,0.8856892]
[1759124721381,0.003,111780.0,111770.0,1.95680416]
[1759124722072,1.24262232,111790.0,111780.0,0.1243271]
[1759124722268,1.2637372,111790.0,111780.0,0.4851271]
[1759124723386,1.2757372,111790.0,111780.0,0.4851271]
[1759124723986,1.2757372,111790.0,111780.0,0.1243271]
[1759124724186,1.2757372,111790.0,111780.0,0.4851271]
[1759124724485,1.2697372,111790.0,111780.0,0.4851271]
[1759124731491,1.6305372,111790.0,111780.0,0.0349]
[1759124732491,2.0305372,111790.0,111780.0,0.01303]
[1759124735597,0.0894271,111780.0,111770.0,0.1242595]
[1759124735894,0.36993694,111780.0,111770.0,0.1242595]
[1759124737598,0.37293694,111780.0,111770.0,0.1242595]
[1759124738097,0.36993694,111780.0,111770.0,0.1242595]
[1759124738295,0.37593694,111780.0,111770.0,0.1242595]
[1759124739596,0.37593694,111780.0,111770.0,0.1023895]
[1759124740195,1.18749694,111780.0,111770.0,0.1242595]
[1759124741699,1.18749694,111780.0,111770.0,0.1023895]
[1759124742092,1.58749694,111780.0,111770.0,0.1023895]
[1759124743597,0.77593694,111780.0,111770.0,0.1023895]
[1759124743796,1.58745694,111780.0,111770.0,0.1023895]
[1759124743997,0.77593694,111780.0,111770.0,0.1023895]
[1759124744196,1.58745694,111780.0,111770.0,0.1023895]
[1759124744398,0.77593694,111780.0,111770.0,0.1023895]
[1759124744598,1.58745694,111780.0,111770.0,0.1023895]
[1759124745500,0.77593694,111780.0,111770.0,0.1023895]
[1759124745798,1.58741694,111780.0,111770.0,0.1023895]
[1759124746190,1.58741694,111780.0,111770.0,0.1242595]
[1759124748405,0.77593694,111780.0,111770.0,0.1242595]
[1759124748605,1.58741694,111780.0,111770.0,0.1242595]
[1759124748804,0.77593694,111780.0,111770.0,0.1242595]
[1759124749104,1.58741694,111780.0,111770.0,0.1242595]
[1759124749703,0.77593694,111780.0,111770.0,0.1242595]
[1759124750003,0.77593694,111780.0,111770.0,0.2242595]
[1759124750202,1.58741694,111780.0,111770.0,0.2242595]
[1759124755702,0.77593694,111780.0,111770.0,0.2242595]
[1759124756003,1.58737694,111780.0,111770.0,0.2242595]
[1759124756806,0.77593694,111780.0,111770.0,0.2242595]
[1759124756998,1.58733694,111780.0,111770.0,0.2242595]
[1759124757199,1.49790984,111780.0,111770.0,0.2242595]
[1759124761910,1.58733694,111780.0,111770.0,0.2242595]
[1759124774215,1.8468931,111780.0,111770.0,0.2242595]
[1759124774718,1.757466,111780.0,111770.0,0.2242595]
[1759124782719,1.257466,111780.0,111770.0,0.2242595]
[1759124783116,1.3468931,111780.0,111770.0,0.2023895]
[1759124783716,1.3468931,111780.0,111770.0,0.25071841]
[1759124784619,1.257466,111780.0,111770.0,0.27265841]
[1759124785722,0.51895112,111780.0,111770.0,0.27265841]
[1759124786121,1.33011112,111780.0,111770.0,0.27265841]
[1759124786520,0.51895112,111780.0,111770.0,0.27265841]
[1759124786719,1.33011112,111780.0,111770.0,0.27265841]
[1759124789217,0.51895112,111780.0,111770.0,0.27265841]
[1759124789420,1.33011112,111780.0,111770.0,0.27265841]
[1759124790221,0.51895112,111780.0,111770.0,0.27265841]
[1759124790423,1.33007112,111780.0,111770.0,0.27265841]
[1759124797128,0.81112,111780.0,111770.0,0.27265841]
[1759124797316,1.33007112,111780.0,111770.0,0.27265841]
[1759124801429,0.51895112,111780.0,111770.0,0.27265841]
[1759124801730,1.32999112,111780.0,111770.0,0.27265841]
[1759124804334,1.32995112,111780.0,111770.0,0.27265841]
[1759124808228,0.51895112,111780.0,111770.0,0.27265841]
[1759124808433,1.32991112,111780.0,111770.0,0.27265841]
[1759124814034,0.51895112,111780.0,111770.0,0.27265841]
[1759124814244,0.53215266,111790.0,111780.0,0.1030571]
[1759124814537,1.27456936,111790.0,111780.0,0.1030571]
[1759124814839,1.29562667,111790.0,111780.0,0.1030571]
[1759124815339,1.81457779,111790.0,111780.0,0.1258471]
[1759124815642,1.90799689,111790.0,111780.0,0.1258471]
[1759124815835,1.91499689,111790.0,111780.0,0.1258471]
[1759124820442,1.91499689,111790.0,111780.0,0.1030571]
[1759124824545,1.55419689,111790.0,111780.0,0.1030571]
[1759124824744,1.91499689,111790.0,111780.0,0.1030571]
[1759124826652,1.91499689,111790.0,111780.0,0.1258471]
[1759124828855,1.91499689,111790.0,111780.0,0.1030571]
[1759124829457,1.91499689,111790.0,111780.0,0.1258471]
[1759124833358,1.91499689,111790.0,111780.0,0.1030571]
[1759124834264,1.65549516,111790.0,111780.0,0.1030571]
[1759124834561,1.29469516,111790.0,111780.0,0.1030571]
[1759124834868,1.65549516,111790.0,111780.0,0.1030571]
[1759124835051,1.29469516,111790.0,111780.0,0.1030571]
[1759124835252,1.65549516,111790.0,111780.0,0.1030571]
[1759124836664,1.29469516,111790.0,111780.0,0.1030571]
[1759124836870,1.65549516,111790.0,111780.0,0.1030571]
[1759124838563,1.29469516,111790.0,111780.0,0.1030571]
[1759124838762,1.65549516,111790.0,111780.0,0.1030571]
[1759124839260,1.63453356,111790.0,111780.0,0.1030571]
[1759124839468,1.65551148,111790.0,111780.0,0.1030571]
[1759124843468,1.65551148,111790.0,111780.0,0.1254271]
[1759124844571,0.84463148,111790.0,111780.0,0.1254271]
[1759124844869,1.65523148,111790.0,111780.0,0.5254271]
[1759124845171,0.84463148,111790.0,111780.0,0.5254271]
[1759124845370,1.65523148,111790.0,111780.0,0.5254271]
[1759124847179,1.39578209,111790.0,111780.0,0.5254271]
[1759124847477,1.65523148,111790.0,111780.0,0.5254271]
[1759124848373,0.84463148,111790.0,111780.0,0.5254271]
[1759124848574,1.65523148,111790.0,111780.0,0.5254271]
[1759124851280,1.39578209,111790.0,111780.0,0.5254271]
[1759124851480,1.65523148,111790.0,111780.0,0.5254271]
[1759124853481,1.39578209,111790.0,111780.0,0.5254271]
[1759124853784,1.65523148,111790.0,111780.0,0.5254271]
[1759124854178,1.56581238,111790.0,111780.0,0.5254271]
[1759124855584,1.65523148,111790.0,111780.0,0.5254271]
[1759124856078,1.39578209,111790.0,111780.0,0.5254271]
[1759124856287,1.65523148,111790.0,111780.0,0.5254271]
[1759124859281,1.39578209,111790.0,111780.0,0.5254271]
[1759124859481,1.65523148,111790.0,111780.0,0.1254271]
[1759124860686,1.65523148,111790.0,111780.0,0.036]
[1759124868092,1.65523148,111790.0,111780.0,0.1254271]
[1759124870001,1.65523148,111790.0,111780.0,0.036]
[1759124875619,1.68734755,111790.0,111780.0,0.036]
[1759124876005,1.65523148,111790.0,111780.0,0.036]
[1759124878017,1.29443148,111790.0,111780.0,0.036]
[1759124878315,1.65523148,111790.0,111780.0,0.036]
[1759124880012,1.29443148,111790.0,111780.0,0.036]
[1759124880215,1.65523148,111790.0,111780.0,0.036]
[1759124888024,0.84463148,111790.0,111780.0,0.036]
[1759124888216,1.65491148,111790.0,111780.0,0.036]
[1759124889929,0.84463148,111790.0,111780.0,0.036]
[1759124890228,1.65491148,111790.0,111780.0,0.036]
[1759124894433,1.65488625,111790.0,111780.0,0.036]
[1759124895831,1.80348625,111790.0,111780.0,0.036]
[1759124896029,1.65488625,111790.0,111780.0,0.036]
[1759124902036,1.29408625,111790.0,111780.0,0.036]
[1759124902230,1.65488625,111790.0,111780.0,0.036]
[1759124904339,0.84460625,111790.0,111780.0,0.036]
[1759124904539,1.65480625,111790.0,111780.0,0.036]
[1759124906741,1.65476625,111790.0,111780.0,0.036]
[1759124906936,0.84460625,111790.0,111780.0,0.036]
[1759124907338,1.65476625,111790.0,111780.0,0.036]
[1759124913145,1.68688232,111790.0,111780.0,0.036]
[1759124915948,1.83548232,111790.0,111780.0,0.036]
[1759124916154,1.68688232,111790.0,111780.0,0.036]
[1759124919857,0.11390568,111790.0,111780.0,1.44427542]
[1759124920045,0.46274894,111790.0,111780.0,1.54565126]
[1759124920561,0.46274894,111790.0,111780.0,0.74565126]
[1759124923061,0.46274894,111790.0,111780.0,0.79398017]
[1759124923666,0.11390568,111790.0,111780.0,1.80507542]
[1759124924164,0.46274894,111790.0,111780.0,2.61511542]
[1759124924557,0.46274894,111790.0,111780.0,2.35569126]
[1759124926564,0.46274894,111790.0,111780.0,1.54565126]
[1759124926859,0.46274894,111790.0,111780.0,2.35569126]
[1759124928069,0.46274894,111790.0,111780.0,1.54565126]
[1759124928264,0.46274894,111790.0,111780.0,1.59398017]
[1759124928470,0.46274894,111790.0,111780.0,2.40398017]
[1759124928667,0.46274894,111790.0,111780.0,1.59398017]
[1759124928868,0.46274894,111790.0,111780.0,2.00398017]
[1759124929571,0.46274894,111790.0,111780.0,1.19398017]
[1759124929771,0.46274894,111790.0,111780.0,2.00398017]
[1759124930270,0.46274894,111790.0,111780.0,1.19398017]
[1759124930471,0.46274894,111790.0,111780.0,2.00394017]
[1759124932764,0.7221731,111790.0,111780.0,0.7968]
[1759124932971,1.27270894,111790.0,111780.0,0.7968]
[1759124934376,0.46274894,111790.0,111780.0,0.7968]
[1759124934574,1.27270894,111790.0,111780.0,0.7968]
[1759124934967,0.46274894,111790.0,111780.0,0.8862271]
[1759124935273,1.27270894,111790.0,111780.0,0.8862271]
[1759124935570,1.27266894,111790.0,111780.0,0.8862271]
[1759124938172,1.27275975,111790.0,111780.0,0.8862271]
[1759124939173,0.46283975,111790.0,111780.0,0.8862271]
[1759124939372,1.27271975,111790.0,111780.0,0.8862271]
[1759124942579,1.01329559,111790.0,111780.0,0.8862271]
[1759124942878,1.27271975,111790.0,111780.0,0.8862271]
[1759124943576,1.27271975,111790.0,111780.0,0.7968]
[1759124946177,1.27271975,111790.0,111780.0,0.93455601]
[1759124948779,1.27271975,111790.0,111780.0,0.84512891]
[1759124952280,1.27271975,111790.0,111780.0,0.93455601]
[1759124956280,1.27270363,111790.0,111780.0,0.93455601]
[1759124960183,0.46282363,111790.0,111780.0,0.93455601]
[1759124960386,1.27258363,111790.0,111780.0,0.93455601]
[1759124961285,0.46282363,111790.0,111780.0,0.93455601]
[1759124961485,1.27258363,111790.0,111780.0,0.93455601]
[1759124963085,1.27258363,111790.0,111780.0,0.8862271]
[1759124964488,1.27258363,111790.0,111780.0,0.5254271]
[1759124964691,1.27258363,111790.0,111780.0,0.8862271]
[1759124965087,0.46282363,111790.0,111780.0,0.8862271]
[1759124965485,1.27258363,111790.0,111780.0,0.8862271]
[1759124969793,1.27258363,111790.0,111780.0,0.93455601]
[1759124970295,1.27258363,111790.0,111780.0,0.8862271]
[1759124971394,0.46282363,111790.0,111780.0,0.8862271]
[1759124971596,1.27254363,111790.0,111780.0,0.8862271]
[1759124972997,1.27254363,111790.0,111780.0,0.93455601]
[1759124973604,0.46282363,111790.0,111780.0,0.93455601]
[1759124973900,1.27250363,111790.0,111780.0,0.93455601]
[1759124974401,1.27250363,111790.0,111780.0,0.57375601]
[1759124974605,1.27250363,111790.0,111780.0,0.93455601]
[1759124975899,0.46282363,111790.0,111780.0,0.93455601]
[1759124976116,1.27250363,111790.0,111780.0,0.93455601]
[1759124978811,0.46282363,111790.0,111780.0,0.93455601]
[1759124979201,1.27250363,111790.0,111780.0,0.93455601]
[1759124979405,1.27250363,111790.0,111780.0,0.53455601]
[1759124983804,0.46282363,111790.0,111780.0,0.53455601]
[1759124984207,1.27246363,111790.0,111780.0,0.53455601]
[1759124984507,0.20341559,111790.0,111780.0,0.53455601]
[1759124984803,0.46282363,111790.0,111780.0,0.53455601]
[1759124985005,0.20341559,111790.0,111780.0,0.53455601]
[1759124985204,1.27246363,111790.0,111780.0,0.53455601]
[1759124988603,0.46282363,111790.0,111780.0,0.93455601]
[1759124988805,1.27242363,111790.0,111780.0,0.93455601]
[1759124989004,0.46282363,111790.0,111780.0,2.14415601]
[1759124989597,0.46282363,111790.0,111780.0,1.33455601]
[1759124990011,0.46282363,111790.0,111780.0,2.14415601]
[1759124991011,0.46282363,111790.0,111780.0,1.33455601]
[1759124991203,0.46282363,111790.0,111780.0,2.14415601]
[1759124991516,0.46282363,111790.0,111780.0,1.33455601]
[1759124991715,0.46282363,111790.0,111780.0,2.14415601]
[1759124993113,0.37340453,111790.0,111780.0,2.14415601]
[1759124993616,0.37340453,111790.0,111780.0,1.33455601]
[1759124993915,0.37340453,111790.0,111780.0,2.14415601]
[1759124995313,0.37340453,111790.0,111780.0,1.33455601]
[1759124995610,0.46282363,111790.0,111780.0,2.14415601]
[1759124997512,0.46282363,111790.0,111780.0,1.33455601]
[1759124997713,0.46282363,111790.0,111780.0,2.14415601]
[1759125003721,0.46282363,111790.0,111780.0,1.33455601]
[1759125003917,0.46282363,111790.0,111780.0,2.14411601]
[1759125005024,0.46282363,111790.0,111780.0,1.33455601]
[1759125005217,0.46282363,111790.0,111780.0,2.14411601]
[1759125005916,0.46282363,111790.0,111780.0,1.33455601]
[1759125006221,0.46282363,111790.0,111780.0,2.05468891]
[1759125006822,0.46282363,111790.0,111780.0,2.14411601]
[1759125007630,0.46282363,111790.0,111780.0,1.33455601]
[1759125007930,0.46282363,111790.0,111780.0,2.14411601]
[1759125010620,0.46282363,111790.0,111780.0,1.78331601]
[1759125010820,0.46282363,111790.0,111780.0,2.14411601]
[1759125011020,0.46282363,111790.0,111780.0,1.33455601]
[1759125011220,0.46282363,111790.0,111780.0,2.14411601]
[1759125012322,0.46282363,111790.0,111780.0,1.33455601]
[1759125012526,0.46282363,111790.0,111780.0,2.05464891]
[1759125015836,0.46282363,111790.0,111780.0,1.24512891]
[1759125016131,0.46282363,111790.0,111780.0,2.05464891]
[1759125018233,0.46280168,111790.0,111780.0,2.05464891]
[1759125019629,0.46280168,111790.0,111780.0,1.69384891]
[1759125019835,0.46280168,111790.0,111780.0,2.05464891]
[1759125022735,0.20341559,111790.0,111780.0,2.4034621]
[1759125022942,0.46280168,111790.0,111780.0,2.4034621]
[1759125023838,0.20341559,111790.0,111780.0,2.4034621]
[1759125024031,0.46280168,111790.0,111780.0,2.4034621]
[1759125030841,0.20341559,111790.0,111780.0,2.4034621]
[1759125031040,0.46280168,111790.0,111780.0,2.4034621]
[1759125039647,0.46280168,111790.0,111780.0,1.6034621]
[1759125053657,0.37338258,111790.0,111780.0,1.6034621]
[1759125059155,0.11399649,111790.0,111780.0,1.6034621]
[1759125059460,0.36238258,111790.0,111780.0,1.6104621]
[1759125060461,0.36238258,111790.0,111780.0,1.6034621]
[1759125060656,0.36238258,111790.0,111780.0,1.6074621]
[1759125062459,0.45180168,111790.0,111780.0,1.6074621]
[1759125066160,0.36238258,111790.0,111780.0,1.6074621]
[1759125067768,0.45180168,111790.0,111780.0,1.6074621]
[1759125073469,0.45180168,111790.0,111780.0,0.7979421]
[1759125073670,0.45180168,111790.0,111780.0,1.6072621]
[1759125078271,0.45177966,111790.0,111780.0,1.34787601]
[1759125078672,0.45177966,111790.0,111780.0,0.98707601]
[1759125078868,0.45177966,111790.0,111780.0,1.34787601]
[1759125079872,0.45177966,111790.0,111780.0,0.53855601]
[1759125080073,0.45177966,111790.0,111780.0,1.34783601]
[1759125086479,0.10299649,111790.0,111780.0,1.34783601]
[1759125086884,0.36236056,111790.0,111780.0,1.34783601]
[1759125088486,0.36236056,111790.0,111780.0,1.60720008]
[1759125088787,0.36236056,111790.0,111780.0,1.34783601]
[1759125092389,0.36236056,111790.0,111780.0,1.60720008]
[1759125092792,0.36236056,111790.0,111780.0,1.34783601]
[1759125092986,0.36236056,111790.0,111780.0,1.60720008]
[1759125094590,0.36235485,111790.0,111780.0,0.79792008]
[1759125094791,0.36235485,111790.0,111780.0,1.60716008]
[1759125095993,0.36235485,111790.0,111780.0,1.34779601]
[1759125099105,0.45177395,111790.0,111780.0,1.34779601]
[1759125101899,0.19240988,111790.0,111780.0,1.34779601]
[1759125102101,0.45177395,111790.0,111780.0,1.34779601]
[1759125103296,0.36235485,111790.0,111780.0,1.34779601]
[1759125104496,0.45177395,111790.0,111780.0,1.34779601]
[1759125105501,0.10299078,111790.0,111780.0,1.60716008]
[1759125109404,0.02106302,111790.0,111780.0,1.95883117]
[1759125110008,0.02106302,111790.0,111780.0,1.95879117]
[1759125110305,0.00909104,111800.0,111790.0,0.1253391]
[1759125110599,1.56096784,111810.0,111800.0,0.1253311]
[1759125110804,1.56096784,111810.0,111800.0,0.5253311]
[1759125111106,1.63210295,111810.0,111800.0,0.5253311]
[1759125111296,0.80176794,111810.0,111800.0,0.5253311]
[1759125111499,0.54240387,111810.0,111800.0,0.5253311]
[1759125111806,0.80376794,111810.0,111800.0,0.5253311]
[1759125112606,0.80176794,111810.0,111800.0,0.5253311]
[1759125113601,0.10128921,111810.0,111800.0,0.8861311]
[1759125113806,0.10128921,111810.0,111800.0,1.19375299]
[1759125114301,0.10128921,111810.0,111800.0,1.6952911]
[1759125114505,0.10528921,111810.0,111800.0,1.6952911]
[1759125115108,0.10528921,111810.0,111800.0,1.6952511]
[1759125115798,0.36465328,111810.0,111800.0,1.6952511]
[1759125117205,0.36465328,111810.0,111800.0,0.8861311]
[1759125117506,0.36465328,111810.0,111800.0,1.6952511]
[1759125118904,0.36465328,111810.0,111800.0,1.14549517]
[1759125119106,0.45405638,111810.0,111800.0,0.8861311]
[1759125119309,0.45405638,111810.0,111800.0,1.6952111]
[1759125119511,0.45405638,111810.0,111800.0,0.8861311]
[1759125121507,0.19469231,111810.0,111800.0,0.8861311]
[1759125121808,0.45405638,111810.0,111800.0,0.8861311]
[1759125134016,0.09619817,111810.0,111800.0,1.14549517]
[1759125134212,0.07513511,111810.0,111800.0,1.20269478]
[1759125135214,0.07513511,111810.0,111800.0,1.19375299]
[1759125135407,0.004,111810.0,111800.0,1.19375299]
[1759125137421,0.004,111810.0,111800.0,1.20275036]
[1759125138315,0.0925548,111840.0,111830.0,0.1257372]
[1759125138522,0.04146224,111840.0,111830.0,0.74568944]
[1759125138721,0.369542,111840.0,111830.0,0.74568944]
[1759125138917,0.2801628,111840.0,111830.0,0.74568944]
[1759125139219,0.37847343,111840.0,111830.0,0.74568944]
[1759125139423,0.00893143,111840.0,111830.0,0.74568944]
[1759125139625,0.28115224,111840.0,111830.0,0.74568944]
[1759125139823,0.25915224,111840.0,111830.0,0.74568944]
[1759125140121,0.26815224,111840.0,111830.0,0.74568944]
[1759125140625,0.35753144,111840.0,111830.0,0.74568944]
[1759125140922,0.34874795,111840.0,111830.0,0.74568944]
[1759125141322,0.34874795,111840.0,111830.0,1.55460944]
[1759125141623,0.34874795,111840.0,111830.0,0.74568944]
[1759125141922,0.34874795,111840.0,111830.0,1.55456944]
[1759125142221,0.34874795,111840.0,111830.0,0.74568944]
[1759125142520,0.34874795,111840.0,111830.0,1.55456944]
[1759125143024,0.34874795,111840.0,111830.0,0.74568944]
[1759125143220,0.34874795,111840.0,111830.0,1.55456944]
[1759125145519,0.34874795,111840.0,111830.0,0.74568944]
[1759125145723,0.35191795,111840.0,111830.0,1.55452944]
[1759125146223,0.34074795,111840.0,111830.0,1.55452944]
[1759125148624,0.08159571,111840.0,111830.0,1.55452944]
[1759125148825,0.34074795,111840.0,111830.0,1.55452944]
[1759125149621,0.34074795,111840.0,111830.0,1.19372944]
[1759125149830,0.34074795,111840.0,111830.0,1.91532944]
[1759125150428,0.34074795,111840.0,111830.0,1.6561772]
[1759125150621,0.34074795,111840.0,111830.0,1.10648944]
[1759125150923,0.69244909,111840.0,111830.0,0.8473372]
[1759125151120,0.43329685,111840.0,111830.0,1.6570172]
[1759125151429,0.43329685,111840.0,111830.0,0.8473372]
[1759125151619,0.69244909,111840.0,111830.0,1.6577372]
[1759125151825,0.43329685,111840.0,111830.0,1.91688944]
[1759125152430,0.43329685,111840.0,111830.0,1.10648944]
[1759125152824,0.43329685,111840.0,111830.0,1.91684944]
[1759125153229,0.45417952,111840.0,111830.0,1.91684944]
[1759125153728,0.45417952,111840.0,111830.0,1.91680944]
[1759125154728,0.45417952,111840.0,111830.0,1.10648944]
[1759125154932,0.45417952,111840.0,111830.0,1.91676944]
[1759125155116,0.45417952,111840.0,111830.0,1.10648944]
[1759125155322,0.45417952,111840.0,111830.0,1.91672944]
[1759125156024,0.45417952,111840.0,111830.0,0.8473372]
[1759125156230,0.71333176,111840.0,111830.0,1.6575369]
[1759125158532,0.71333176,111840.0,111830.0,0.8473369]
[1759125159333,0.19502728,111840.0,111830.0,0.8473369]